[Event "Live Chess"]
[Site "Chess.com"]
[Date "2023.05.20"]
[Round "-"]
[White "JoshMcK"]
[Black "MartynColebrook"]
[Result "1-0"]
[WhiteElo "1543"]
[BlackElo "1142"]
[TimeControl "300"]
[EndTime "10:13:42 PDT"]
[Termination "JoshMcK won by resignation"]

1. e4 {[%clk 0:04:59.1]} 1... d5 {[%clk 0:04:55.3]} 2. exd5 {[%clk 0:04:57.6]}
2... Qxd5 {[%clk 0:04:53.4]} 3. Nc3 {[%clk 0:04:57.1]} 3... Qa5 {[%clk
0:04:51.1]} 4. d4 {[%clk 0:04:55.8]} 4... e5 {[%clk 0:04:49.4]} 5. dxe5 {[%clk
0:04:51.9]} 5... Qxe5+ {[%clk 0:04:47]} 6. Qe2 {[%clk 0:04:51]} 6... Qxe2+
{[%clk 0:04:44.8]} 7. Bxe2 {[%clk 0:04:50.9]} 7... Nc6 {[%clk 0:04:35.1]} 8. Bf4
{[%clk 0:04:45.5]} 8... Bd6 {[%clk 0:04:29.2]} 9. Bxd6 {[%clk 0:04:42.6]} 9...
cxd6 {[%clk 0:04:27.3]} 10. O-O-O {[%clk 0:04:42.2]} 10... Ke7 {[%clk
0:04:18.2]} 11. Nb5 {[%clk 0:04:40.6]} 11... Nf6 {[%clk 0:03:53.7]} 12. Nxd6
{[%clk 0:04:38]} 12... Bf5 {[%clk 0:03:44.3]} 13. Nxf5+ {[%clk 0:04:36.6]} 13...
Ke6 {[%clk 0:03:41.7]} 14. Nxg7+ {[%clk 0:04:35.6]} 1-0

[Event "Live Chess"]
[Site "Chess.com"]
[Date "2023.05.20"]
[Round "-"]
[White "AKRJourno"]
[Black "KGreenGator"]
[Result "0-1"]
[WhiteElo "750"]
[BlackElo "1768"]
[TimeControl "300"]
[EndTime "10:13:44 PDT"]
[Termination "KGreenGator won by checkmate"]

1. e4 {[%clk 0:04:58.6]} 1... c5 {[%clk 0:04:59.1]} 2. f4 {[%clk 0:04:54.5]}
2... e6 {[%clk 0:04:56.5]} 3. Nc3 {[%clk 0:04:52.9]} 3... Nc6 {[%clk 0:04:53.7]}
4. Nf3 {[%clk 0:04:50.8]} 4... Nf6 {[%clk 0:04:50.6]} 5. e5 {[%clk 0:04:47.5]}
5... Ng4 {[%clk 0:04:44.2]} 6. Ng5 {[%clk 0:04:40.5]} 6... h5 {[%clk 0:04:39.6]}
7. Nce4 {[%clk 0:04:32.8]} 7... Be7 {[%clk 0:04:37.1]} 8. h4 {[%clk 0:04:26.3]}
8... d5 {[%clk 0:04:33.7]} 9. exd6 {[%clk 0:04:19.9]} 9... Bxd6 {[%clk
0:04:32.5]} 10. Bb5 {[%clk 0:04:11]} 10... Bxf4 {[%clk 0:04:30.6]} 11. Bxc6+
{[%clk 0:04:05.3]} 11... bxc6 {[%clk 0:04:28.9]} 12. Nxc5 {[%clk 0:04:03.2]}
12... Qd4 {[%clk 0:04:27.7]} 13. Nf3 {[%clk 0:03:48.7]} 13... Qf2# {[%clk
0:04:25.9]} 0-1

[Event "Live Chess"]
[Site "Chess.com"]
[Date "2023.05.20"]
[Round "-"]
[White "AttackingSnowLeopard"]
[Black "HoarseyHorsey"]
[Result "1-0"]
[WhiteElo "2061"]
[BlackElo "1387"]
[TimeControl "300"]
[EndTime "10:13:59 PDT"]
[Termination "AttackingSnowLeopard won by resignation"]

1. d4 {[%clk 0:04:57.7]} 1... Nf6 {[%clk 0:04:58.7]} 2. c4 {[%clk 0:04:57.1]}
2... e6 {[%clk 0:04:57.8]} 3. Nf3 {[%clk 0:04:56.2]} 3... d5 {[%clk 0:04:57]} 4.
Nc3 {[%clk 0:04:55]} 4... c5 {[%clk 0:04:54.7]} 5. cxd5 {[%clk 0:04:53.8]} 5...
exd5 {[%clk 0:04:53.2]} 6. g3 {[%clk 0:04:51.9]} 6... Nc6 {[%clk 0:04:51.8]} 7.
Bg2 {[%clk 0:04:51.5]} 7... Bg4 {[%clk 0:04:48.1]} 8. O-O {[%clk 0:04:50]} 8...
Bd6 {[%clk 0:04:46.4]} 9. dxc5 {[%clk 0:04:47.1]} 9... Bxc5 {[%clk 0:04:45.3]}
10. Bg5 {[%clk 0:04:46.1]} 10... d4 {[%clk 0:04:38]} 11. Ne4 {[%clk 0:04:44.2]}
11... Be7 {[%clk 0:04:36.1]} 12. Nxf6+ {[%clk 0:04:36.9]} 12... Bxf6 {[%clk
0:04:35.3]} 13. Bxf6 {[%clk 0:04:36.6]} 13... Qxf6 {[%clk 0:04:34.4]} 14. h3
{[%clk 0:04:34.4]} 14... Be6 {[%clk 0:04:23]} 15. Nd2 {[%clk 0:04:33]} 15... O-O
{[%clk 0:04:21.4]} 16. Ne4 {[%clk 0:04:31.6]} 16... Qe5 {[%clk 0:04:14.6]} 17.
f4 {[%clk 0:04:22.9]} 17... Qb5 {[%clk 0:04:07.5]} 18. Ng5 {[%clk 0:04:13.6]}
18... Bd5 {[%clk 0:04:04.6]} 19. Bxd5 {[%clk 0:04:02.7]} 19... Qxd5 {[%clk
0:04:02.6]} 20. e4 {[%clk 0:04:02.4]} 20... Qc5 {[%clk 0:03:56.4]} 21. Rc1
{[%clk 0:03:57]} 21... Qb5 {[%clk 0:03:47.4]} 22. a4 {[%clk 0:03:24.1]} 22...
Qb4 {[%clk 0:03:31.1]} 23. Qd3 {[%clk 0:03:20.3]} 23... Rac8 {[%clk 0:03:24.5]}
24. e5 {[%clk 0:03:18.2]} 24... g6 {[%clk 0:02:51.8]} 25. Ne4 {[%clk 0:03:15.7]}
25... Qe7 {[%clk 0:02:41.4]} 26. Nf6+ {[%clk 0:03:12.9]} 26... Kg7 {[%clk
0:02:39.6]} 27. h4 {[%clk 0:03:06.3]} 27... Rfd8 {[%clk 0:02:25.4]} 28. h5
{[%clk 0:03:03]} 28... Nb4 {[%clk 0:02:23.9]} 29. Qd2 {[%clk 0:02:54]} 29... d3
{[%clk 0:02:14.8]} 30. hxg6 {[%clk 0:02:43.2]} 30... hxg6 {[%clk 0:02:11]} 31.
Qh2 {[%clk 0:02:42.5]} 1-0

[Event "Live Chess"]
[Site "Chess.com"]
[Date "2023.05.20"]
[Round "-"]
[White "alanmike75"]
[Black "mightysmasher"]
[Result "0-1"]
[WhiteElo "1483"]
[BlackElo "2097"]
[TimeControl "300"]
[EndTime "10:14:03 PDT"]
[Termination "mightysmasher won by resignation"]

1. e4 {[%clk 0:04:59.2]} 1... e6 {[%clk 0:04:58.2]} 2. Nf3 {[%clk 0:04:57.2]}
2... d5 {[%clk 0:04:57.4]} 3. exd5 {[%clk 0:04:55.2]} 3... exd5 {[%clk
0:04:56.7]} 4. d4 {[%clk 0:04:54.2]} 4... Nf6 {[%clk 0:04:52]} 5. Be2 {[%clk
0:04:52.7]} 5... Bd6 {[%clk 0:04:50.4]} 6. O-O {[%clk 0:04:51.6]} 6... O-O
{[%clk 0:04:49.5]} 7. Bg5 {[%clk 0:04:49.9]} 7... Bg4 {[%clk 0:04:48.2]} 8. Nbd2
{[%clk 0:04:48.3]} 8... Nbd7 {[%clk 0:04:45.4]} 9. Ne5 {[%clk 0:04:44.1]} 9...
Bxe5 {[%clk 0:04:39.8]} 10. dxe5 {[%clk 0:04:42.7]} 10... Nxe5 {[%clk
0:04:37.8]} 11. Bxg4 {[%clk 0:04:33.6]} 11... Nexg4 {[%clk 0:04:35.6]} 12. Nf3
{[%clk 0:04:09.3]} 12... h6 {[%clk 0:04:31.9]} 13. h3 {[%clk 0:04:06.2]} 13...
hxg5 {[%clk 0:04:27.7]} 14. hxg4 {[%clk 0:04:05.1]} 14... Nxg4 {[%clk
0:04:26.8]} 15. Nd4 {[%clk 0:03:59.3]} 15... Nf6 {[%clk 0:04:21]} 16. Nf5 {[%clk
0:03:48.9]} 16... Qd7 {[%clk 0:04:18.9]} 17. Qf3 {[%clk 0:03:45]} 17... g6
{[%clk 0:04:15.7]} 0-1

[Event "Live Chess"]
[Site "Chess.com"]
[Date "2023.05.20"]
[Round "-"]
[White "daveeeeR"]
[Black "OBrightwell100"]
[Result "1-0"]
[WhiteElo "1272"]
[BlackElo "1300"]
[TimeControl "300"]
[EndTime "10:14:09 PDT"]
[Termination "daveeeeR won by checkmate"]

1. d4 {[%clk 0:04:56.3]} 1... d5 {[%clk 0:04:58.7]} 2. Bf4 {[%clk 0:04:54.4]}
2... c5 {[%clk 0:04:56.7]} 3. Nf3 {[%clk 0:04:51.1]} 3... Nf6 {[%clk 0:04:53.7]}
4. e3 {[%clk 0:04:49.3]} 4... e6 {[%clk 0:04:52.1]} 5. c3 {[%clk 0:04:47.6]}
5... Nc6 {[%clk 0:04:51.2]} 6. Nbd2 {[%clk 0:04:44.8]} 6... Bd6 {[%clk
0:04:50.8]} 7. Bg3 {[%clk 0:04:43.1]} 7... O-O {[%clk 0:04:48.9]} 8. Bd3 {[%clk
0:04:39.6]} 8... b5 {[%clk 0:04:47.1]} 9. h4 {[%clk 0:04:37.1]} 9... c4 {[%clk
0:04:45.7]} 10. Bc2 {[%clk 0:04:35.6]} 10... a5 {[%clk 0:04:44.3]} 11. Be5
{[%clk 0:04:27.4]} 11... a4 {[%clk 0:04:36.8]} 12. a3 {[%clk 0:04:24.8]} 12...
Na5 {[%clk 0:04:28.7]} 13. Bxf6 {[%clk 0:04:06.3]} 13... Qxf6 {[%clk 0:04:25.3]}
14. e4 {[%clk 0:03:40.9]} 14... Nb3 {[%clk 0:04:17.4]} 15. e5 {[%clk 0:03:33]}
15... Qd8 {[%clk 0:04:14]} 16. exd6 {[%clk 0:03:24.2]} 16... Nxa1 {[%clk
0:04:10.8]} 17. Bxh7+ {[%clk 0:03:17.8]} 17... Kxh7 {[%clk 0:04:06.2]} 18. Ng5+
{[%clk 0:03:16.9]} 18... Kg8 {[%clk 0:04:04.3]} 19. Qh5 {[%clk 0:03:15.5]} 19...
Re8 {[%clk 0:03:42.3]} 20. Qxf7+ {[%clk 0:03:02.9]} 20... Kh8 {[%clk 0:03:36.8]}
21. Qh5+ {[%clk 0:02:47.1]} 21... Kg8 {[%clk 0:03:35.4]} 22. Qf7+ {[%clk
0:02:37.2]} 22... Kh8 {[%clk 0:03:33.7]} 23. Rh3 {[%clk 0:02:35.9]} 23... Rf8
{[%clk 0:03:22.7]} 24. Qh5+ {[%clk 0:02:33.5]} 24... Kg8 {[%clk 0:03:21.2]} 25.
Qh7# {[%clk 0:02:32.5]} 1-0

[Event "Live Chess"]
[Site "Chess.com"]
[Date "2023.05.20"]
[Round "-"]
[White "flyingpuffins"]
[Black "TheSmoulderingMaster"]
[Result "1-0"]
[WhiteElo "1962"]
[BlackElo "1788"]
[TimeControl "300"]
[EndTime "10:14:10 PDT"]
[Termination "flyingpuffins won by resignation"]

1. e4 {[%clk 0:04:56.7]} 1... c5 {[%clk 0:04:58.9]} 2. Nf3 {[%clk 0:04:55.6]}
2... d6 {[%clk 0:04:58.3]} 3. d4 {[%clk 0:04:54.2]} 3... cxd4 {[%clk 0:04:57.8]}
4. Nxd4 {[%clk 0:04:53.5]} 4... Nf6 {[%clk 0:04:57.2]} 5. Nc3 {[%clk 0:04:52.2]}
5... g6 {[%clk 0:04:56.6]} 6. f4 {[%clk 0:04:50.8]} 6... Bg7 {[%clk 0:04:55.7]}
7. e5 {[%clk 0:04:50.2]} 7... Nfd7 {[%clk 0:04:54.1]} 8. e6 {[%clk 0:04:20.6]}
8... Nf6 {[%clk 0:04:40.8]} 9. exf7+ {[%clk 0:04:15.5]} 9... Kxf7 {[%clk
0:04:39.8]} 10. Be3 {[%clk 0:04:09.9]} 10... Rf8 {[%clk 0:04:35.2]} 11. Qd2
{[%clk 0:04:02.5]} 11... Kg8 {[%clk 0:04:33.9]} 12. O-O-O {[%clk 0:03:59.5]}
12... Ng4 {[%clk 0:04:32.1]} 13. Bc4+ {[%clk 0:03:46.9]} 13... Kh8 {[%clk
0:04:30.7]} 14. Bg1 {[%clk 0:03:45.7]} 14... Nc6 {[%clk 0:04:27]} 15. h3 {[%clk
0:03:44.2]} 15... Nf6 {[%clk 0:04:17]} 16. g4 {[%clk 0:03:38.8]} 16... Nxd4
{[%clk 0:04:11.2]} 17. Bxd4 {[%clk 0:03:36]} 17... Bd7 {[%clk 0:04:09.2]} 18. g5
{[%clk 0:03:28.9]} 18... Nh5 {[%clk 0:04:06.5]} 19. Bxg7+ {[%clk 0:03:28.8]}
19... Nxg7 {[%clk 0:04:06.2]} 20. h4 {[%clk 0:03:21.9]} 20... Nf5 {[%clk
0:04:04.4]} 21. h5 {[%clk 0:03:18.8]} 21... Be8 {[%clk 0:03:59.3]} 22. hxg6
{[%clk 0:03:14.1]} 22... Bxg6 {[%clk 0:03:57.7]} 23. Bd3 {[%clk 0:02:57.5]}
23... Qb6 {[%clk 0:03:48.8]} 24. Bxf5 {[%clk 0:02:48.5]} 24... Bxf5 {[%clk
0:03:48.7]} 25. Rdg1 {[%clk 0:02:32.9]} 25... Rac8 {[%clk 0:03:41.1]} 26. g6
{[%clk 0:02:29.9]} 26... Bh3 {[%clk 0:03:12.9]} 27. g7+ {[%clk 0:02:08.1]} 27...
Kg8 {[%clk 0:03:11.3]} 28. gxf8=Q+ {[%clk 0:02:08]} 28... Kxf8 {[%clk
0:03:10.8]} 29. Qh2 {[%clk 0:01:53.8]} 29... Bf5 {[%clk 0:03:07.8]} 30. Qh6+
{[%clk 0:01:45.2]} 30... Ke8 {[%clk 0:03:06.2]} 31. Rg8+ {[%clk 0:01:39.3]}
31... Kd7 {[%clk 0:03:04.8]} 32. Rxc8 {[%clk 0:01:38.4]} 32... Kxc8 {[%clk
0:03:04.7]} 33. Qf8+ {[%clk 0:01:35.6]} 1-0

[Event "Live Chess"]
[Site "Chess.com"]
[Date "2023.05.20"]
[Round "-"]
[White "Prijmak"]
[Black "Olisingapore"]
[Result "0-1"]
[WhiteElo "979"]
[BlackElo "1944"]
[TimeControl "300"]
[EndTime "10:14:12 PDT"]
[Termination "Olisingapore won by resignation"]

1. e4 {[%clk 0:04:57.4]} 1... c5 {[%clk 0:04:58]} 2. Nf3 {[%clk 0:04:55.1]} 2...
d6 {[%clk 0:04:57.5]} 3. d4 {[%clk 0:04:53.9]} 3... cxd4 {[%clk 0:04:57.4]} 4.
Nxd4 {[%clk 0:04:53.1]} 4... Nf6 {[%clk 0:04:56.8]} 5. Nc3 {[%clk 0:04:50.2]}
5... a6 {[%clk 0:04:56.2]} 6. Bd3 {[%clk 0:04:48.3]} 6... e5 {[%clk 0:04:54.9]}
7. Nb3 {[%clk 0:04:44.9]} 7... Be7 {[%clk 0:04:53.7]} 8. Be3 {[%clk 0:04:43.4]}
8... Be6 {[%clk 0:04:53.1]} 9. Qe2 {[%clk 0:04:37.5]} 9... Nbd7 {[%clk
0:04:51.7]} 10. O-O {[%clk 0:04:35.7]} 10... b5 {[%clk 0:04:46.9]} 11. a3 {[%clk
0:04:33.8]} 11... Rc8 {[%clk 0:04:45.3]} 12. Rac1 {[%clk 0:04:29.2]} 12... Bg4
{[%clk 0:04:37.3]} 13. f3 {[%clk 0:04:27.7]} 13... Be6 {[%clk 0:04:36.9]} 14.
Rfd1 {[%clk 0:04:24.6]} 14... h5 {[%clk 0:04:35.9]} 15. Na2 {[%clk 0:04:18.6]}
15... d5 {[%clk 0:04:04.8]} 16. Bg5 {[%clk 0:04:07]} 16... d4 {[%clk 0:03:51.6]}
17. Nb4 {[%clk 0:03:46.5]} 17... a5 {[%clk 0:03:41.8]} 18. Nd5 {[%clk
0:03:43.1]} 18... Nxd5 {[%clk 0:03:26.4]} 19. exd5 {[%clk 0:03:34.2]} 19... Bxg5
{[%clk 0:03:18.9]} 20. Rb1 {[%clk 0:03:28.2]} 20... Be3+ {[%clk 0:03:13.7]} 21.
Kf1 {[%clk 0:03:25.7]} 21... Bxd5 {[%clk 0:03:12.9]} 22. Bxb5 {[%clk 0:03:21.7]}
22... Qh4 {[%clk 0:03:06.4]} 23. h3 {[%clk 0:03:15.1]} 23... O-O {[%clk
0:02:43.4]} 24. Nxa5 {[%clk 0:03:10.9]} 24... e4 {[%clk 0:02:37.4]} 25. fxe4
{[%clk 0:03:04.1]} 25... Qf4+ {[%clk 0:02:28.7]} 26. Ke1 {[%clk 0:02:57.3]}
26... Qg3+ {[%clk 0:02:19.7]} 27. Kf1 {[%clk 0:02:54.3]} 27... Bxe4 {[%clk
0:02:17]} 28. Bxd7 {[%clk 0:02:45.7]} 28... Qh2 {[%clk 0:02:13.7]} 29. Qf2
{[%clk 0:02:17.9]} 29... Qh1+ {[%clk 0:01:47]} 30. Ke2 {[%clk 0:02:10.5]} 30...
Rxc2+ {[%clk 0:01:44.7]} 0-1

[Event "Live Chess"]
[Site "Chess.com"]
[Date "2023.05.20"]
[Round "-"]
[White "jagbama"]
[Black "ProfPoisson"]
[Result "1-0"]
[WhiteElo "1139"]
[BlackElo "1079"]
[TimeControl "300"]
[EndTime "10:14:14 PDT"]
[Termination "jagbama won by checkmate"]

1. e4 {[%clk 0:04:58]} 1... e5 {[%clk 0:04:57.5]} 2. Nf3 {[%clk 0:04:57.2]} 2...
Nf6 {[%clk 0:04:55]} 3. Bc4 {[%clk 0:04:54.5]} 3... Nxe4 {[%clk 0:04:53]} 4. Qe2
{[%clk 0:04:53.2]} 4... d5 {[%clk 0:04:50.9]} 5. Nxe5 {[%clk 0:04:42]} 5... Bd6
{[%clk 0:04:25.7]} 6. Bxd5 {[%clk 0:04:22.1]} 6... Bxe5 {[%clk 0:04:10.7]} 7.
Bxe4 {[%clk 0:04:20.9]} 7... O-O {[%clk 0:04:08.1]} 8. O-O {[%clk 0:04:15.9]}
8... Nc6 {[%clk 0:04:03.1]} 9. Bxc6 {[%clk 0:04:09.8]} 9... bxc6 {[%clk
0:03:54.7]} 10. Qxe5 {[%clk 0:04:08.2]} 10... Re8 {[%clk 0:03:47.8]} 11. Qc3
{[%clk 0:04:02.7]} 11... Qg5 {[%clk 0:03:41.3]} 12. d4 {[%clk 0:03:48.1]} 12...
Qg6 {[%clk 0:03:38.5]} 13. Bf4 {[%clk 0:03:32.5]} 13... Bh3 {[%clk 0:03:32.9]}
14. Qxh3 {[%clk 0:03:30.7]} 14... Qxc2 {[%clk 0:03:27]} 15. Nd2 {[%clk
0:03:13.2]} 15... Qxb2 {[%clk 0:03:20.4]} 16. Rab1 {[%clk 0:02:51.7]} 16... Qxd4
{[%clk 0:03:18]} 17. Be3 {[%clk 0:02:43.9]} 17... Qf6 {[%clk 0:03:04.8]} 18. Rb7
{[%clk 0:02:35.9]} 18... Rad8 {[%clk 0:02:56.4]} 19. Rxc7 {[%clk 0:02:19.3]}
19... Qb2 {[%clk 0:02:36.1]} 20. Nf3 {[%clk 0:01:55.8]} 20... Qc2 {[%clk
0:02:03.7]} 21. Ng5 {[%clk 0:01:46.9]} 21... h6 {[%clk 0:02:00]} 22. Nxf7 {[%clk
0:01:42]} 22... Rd1 {[%clk 0:01:53.7]} 23. Nxh6+ {[%clk 0:01:19.2]} 23... Kf8
{[%clk 0:01:39.6]} 24. Rf7# {[%clk 0:01:15.1]} 1-0

[Event "Live Chess"]
[Site "Chess.com"]
[Date "2023.05.20"]
[Round "-"]
[White "ReeceHockton"]
[Black "vinni3012"]
[Result "0-1"]
[WhiteElo "331"]
[BlackElo "1865"]
[TimeControl "300"]
[EndTime "10:14:16 PDT"]
[Termination "vinni3012 won by resignation"]

1. d4 {[%clk 0:04:49.1]} 1... d5 {[%clk 0:04:58.4]} 2. e3 {[%clk 0:04:47.9]}
2... Nf6 {[%clk 0:04:56.1]} 3. Nf3 {[%clk 0:04:46.7]} 3... Bg4 {[%clk
0:04:46.2]} 4. Be2 {[%clk 0:04:44.3]} 4... Nbd7 {[%clk 0:04:43.8]} 5. h3 {[%clk
0:04:42.3]} 5... Bh5 {[%clk 0:04:42]} 6. O-O {[%clk 0:04:38.7]} 6... e6 {[%clk
0:04:40.7]} 7. Nc3 {[%clk 0:04:36.1]} 7... c6 {[%clk 0:04:39.1]} 8. b4 {[%clk
0:04:34.8]} 8... Bxb4 {[%clk 0:04:34.9]} 9. a3 {[%clk 0:04:33.5]} 9... Bxc3
{[%clk 0:04:33.4]} 10. Bd2 {[%clk 0:04:30.4]} 10... Bxa1 {[%clk 0:04:31.7]} 11.
Qxa1 {[%clk 0:04:28.8]} 11... Ne4 {[%clk 0:04:30.7]} 12. Bd3 {[%clk 0:04:25.9]}
12... Bxf3 {[%clk 0:04:28.3]} 13. gxf3 {[%clk 0:04:24.6]} 13... Nxd2 {[%clk
0:04:27.4]} 14. Rd1 {[%clk 0:04:21.3]} 14... Qg5+ {[%clk 0:04:24.2]} 15. Kh2
{[%clk 0:04:18]} 15... Nxf3+ {[%clk 0:04:23.1]} 16. Kh1 {[%clk 0:04:12]} 0-1

[Event "Live Chess"]
[Site "Chess.com"]
[Date "2023.05.20"]
[Round "-"]
[White "HD_IN4k"]
[Black "NAZRIZ1977"]
[Result "0-1"]
[WhiteElo "278"]
[BlackElo "2132"]
[TimeControl "300"]
[EndTime "10:14:17 PDT"]
[Termination "NAZRIZ1977 won by checkmate"]

1. d4 {[%clk 0:04:47.4]} 1... Nf6 {[%clk 0:04:58.5]} 2. c4 {[%clk 0:04:37.9]}
2... c5 {[%clk 0:04:57.5]} 3. dxc5 {[%clk 0:04:34.3]} 3... g6 {[%clk 0:04:56.3]}
4. e3 {[%clk 0:04:17.2]} 4... Bg7 {[%clk 0:04:55.2]} 5. Bd3 {[%clk 0:04:15]}
5... O-O {[%clk 0:04:53.8]} 6. f3 {[%clk 0:03:30.3]} 6... Nc6 {[%clk 0:04:51]}
7. e4 {[%clk 0:02:59.4]} 7... Qa5+ {[%clk 0:04:49.3]} 8. Bd2 {[%clk 0:02:56.2]}
8... Qxc5 {[%clk 0:04:48.2]} 9. a3 {[%clk 0:02:47]} 9... a5 {[%clk 0:04:47]} 10.
Nh3 {[%clk 0:02:35]} 10... d6 {[%clk 0:04:43]} 11. f4 {[%clk 0:02:27]} 11...
Bxh3 {[%clk 0:04:39.4]} 12. gxh3 {[%clk 0:02:24.5]} 12... Qh5 {[%clk 0:04:34.3]}
13. Qxh5 {[%clk 0:02:19.6]} 13... Nxh5 {[%clk 0:04:33.4]} 14. f5 {[%clk
0:02:16.6]} 14... Bxb2 {[%clk 0:04:30.5]} 15. Ra2 {[%clk 0:02:14.2]} 15... Bg7
{[%clk 0:04:29.4]} 16. fxg6 {[%clk 0:02:11]} 16... hxg6 {[%clk 0:04:28.5]} 17.
e5 {[%clk 0:02:05.1]} 17... Nxe5 {[%clk 0:04:27.3]} 18. Bxg6 {[%clk 0:01:56.2]}
18... fxg6 {[%clk 0:04:23.6]} 19. Nc3 {[%clk 0:01:45.2]} 19... Nxc4 {[%clk
0:04:21.6]} 20. Nd5 {[%clk 0:01:42]} 20... Nxd2 {[%clk 0:04:19.4]} 21. Nxe7+
{[%clk 0:01:39.6]} 21... Kh7 {[%clk 0:04:18.2]} 22. Kxd2 {[%clk 0:01:29.8]}
22... Rf2+ {[%clk 0:04:16.8]} 23. Kc1 {[%clk 0:01:15.7]} 23... Rxa2 {[%clk
0:04:13.9]} 24. Kb1 {[%clk 0:01:15.6]} 24... Rg2 {[%clk 0:04:11.7]} 25. h4
{[%clk 0:00:57.4]} 25... Re8 {[%clk 0:04:10]} 26. Nd5 {[%clk 0:00:50.6]} 26...
Ree2 {[%clk 0:04:07.9]} 27. Nc3 {[%clk 0:00:38.8]} 27... Bxc3 {[%clk 0:04:05.8]}
28. Kc1 {[%clk 0:00:34.5]} 28... Ra2 {[%clk 0:04:04.5]} 29. Kb1 {[%clk
0:00:31.7]} 29... Ra1# {[%clk 0:04:03.4]} 0-1

[Event "Live Chess"]
[Site "Chess.com"]
[Date "2023.05.20"]
[Round "-"]
[White "Ninifu"]
[Black "stevefairhurst"]
[Result "1-0"]
[WhiteElo "1981"]
[BlackElo "544"]
[TimeControl "300"]
[EndTime "10:14:19 PDT"]
[Termination "Ninifu won by checkmate"]

1. d4 {[%clk 0:04:56.4]} 1... d5 {[%clk 0:04:58.8]} 2. e4 {[%clk 0:04:55]} 2...
dxe4 {[%clk 0:04:57.3]} 3. Nc3 {[%clk 0:04:54.4]} 3... f5 {[%clk 0:04:54.3]} 4.
f3 {[%clk 0:04:53.4]} 4... exf3 {[%clk 0:04:45.6]} 5. Nxf3 {[%clk 0:04:52.7]}
5... Be6 {[%clk 0:04:42.7]} 6. Bd3 {[%clk 0:04:42.3]} 6... Nc6 {[%clk
0:04:40.9]} 7. O-O {[%clk 0:04:41]} 7... f4 {[%clk 0:04:34.7]} 8. d5 {[%clk
0:04:30.7]} 8... Bxd5 {[%clk 0:04:30]} 9. Nxd5 {[%clk 0:04:29.4]} 9... e6 {[%clk
0:04:22.8]} 10. Nxf4 {[%clk 0:04:19.9]} 10... Nd4 {[%clk 0:04:17.5]} 11. Kh1
{[%clk 0:04:06.8]} 11... e5 {[%clk 0:03:50.7]} 12. Nxe5 {[%clk 0:03:56.7]} 12...
Qg5 {[%clk 0:03:38.7]} 13. Nd5 {[%clk 0:03:30.3]} 13... Qxe5 {[%clk 0:03:32]}
14. Re1 {[%clk 0:03:28.9]} 14... Nxc2 {[%clk 0:03:15.1]} 15. Rxe5+ {[%clk
0:03:24.9]} 15... Kd7 {[%clk 0:03:10.8]} 16. Bxc2 {[%clk 0:03:22.2]} 16... Bd6
{[%clk 0:03:09.5]} 17. Qg4+ {[%clk 0:03:15.9]} 17... Kc6 {[%clk 0:03:03.3]} 18.
Ba4+ {[%clk 0:03:02.6]} 18... b5 {[%clk 0:03:00.7]} 19. Qc4+ {[%clk 0:02:54.6]}
19... Bc5 {[%clk 0:02:57.4]} 20. Bxb5+ {[%clk 0:02:45.3]} 20... Kb7 {[%clk
0:02:55.4]} 21. Qxc5 {[%clk 0:02:43.6]} 21... Rf8 {[%clk 0:02:53.6]} 22. Qxc7+
{[%clk 0:02:39.1]} 22... Ka8 {[%clk 0:02:51.2]} 23. Bc6# {[%clk 0:02:37.8]} 1-0

[Event "Live Chess"]
[Site "Chess.com"]
[Date "2023.05.20"]
[Round "-"]
[White "martynstanley"]
[Black "jameskwong"]
[Result "0-1"]
[WhiteElo "991"]
[BlackElo "2162"]
[TimeControl "300"]
[EndTime "10:14:22 PDT"]
[Termination "jameskwong won by checkmate"]

1. d4 {[%clk 0:04:55.9]} 1... Nf6 {[%clk 0:04:57.8]} 2. e3 {[%clk 0:04:55.1]}
2... d5 {[%clk 0:04:53.5]} 3. Bd3 {[%clk 0:04:54.2]} 3... c5 {[%clk 0:04:51.5]}
4. c3 {[%clk 0:04:53.4]} 4... Nc6 {[%clk 0:04:50.2]} 5. f4 {[%clk 0:04:52.5]}
5... Bg4 {[%clk 0:04:38.3]} 6. Nf3 {[%clk 0:04:51.1]} 6... e6 {[%clk 0:04:37]}
7. O-O {[%clk 0:04:49.9]} 7... Be7 {[%clk 0:04:32.4]} 8. Qe1 {[%clk 0:04:48.4]}
8... O-O {[%clk 0:04:29.5]} 9. Nbd2 {[%clk 0:04:47.2]} 9... a6 {[%clk
0:04:22.7]} 10. h3 {[%clk 0:04:46.2]} 10... Bf5 {[%clk 0:04:14.5]} 11. Bxf5
{[%clk 0:04:42.9]} 11... exf5 {[%clk 0:04:12.7]} 12. Ne5 {[%clk 0:04:41.5]}
12... Ne4 {[%clk 0:03:55.9]} 13. Rf3 {[%clk 0:04:38.5]} 13... Rc8 {[%clk
0:03:39.4]} 14. Nxe4 {[%clk 0:04:35]} 14... fxe4 {[%clk 0:03:26.4]} 15. Rg3
{[%clk 0:04:34]} 15... Bh4 {[%clk 0:03:23.2]} 16. Bd2 {[%clk 0:04:28.9]} 16...
b5 {[%clk 0:03:12.6]} 17. b4 {[%clk 0:04:22.9]} 17... cxd4 {[%clk 0:03:03.1]}
18. exd4 {[%clk 0:04:21.1]} 18... Bxg3 {[%clk 0:02:27.6]} 19. Qxg3 {[%clk
0:04:19.6]} 19... Ne7 {[%clk 0:02:20.6]} 20. Ng4 {[%clk 0:04:18.3]} 20... Kh8
{[%clk 0:02:17.3]} 21. Be3 {[%clk 0:04:12.7]} 21... Nf5 {[%clk 0:02:15.4]} 22.
Qf2 {[%clk 0:04:11]} 22... Rxc3 {[%clk 0:02:13.2]} 23. Re1 {[%clk 0:04:07.7]}
23... Qc7 {[%clk 0:02:06.6]} 24. h4 {[%clk 0:04:05.6]} 24... Rc2 {[%clk
0:01:47.8]} 25. Re2 {[%clk 0:04:02.9]} 25... Rxe2 {[%clk 0:01:38.3]} 26. Qxe2
{[%clk 0:04:01.8]} 26... Nxh4 {[%clk 0:01:36.9]} 27. Qf2 {[%clk 0:03:50.6]}
27... Nf5 {[%clk 0:01:34.5]} 28. Kh2 {[%clk 0:03:48.8]} 28... Rc8 {[%clk
0:01:31.3]} 29. Ne5 {[%clk 0:03:46.7]} 29... f6 {[%clk 0:01:28.9]} 30. Ng4
{[%clk 0:03:44.4]} 30... h5 {[%clk 0:01:24.4]} 31. Nxf6 {[%clk 0:03:41.9]} 31...
gxf6 {[%clk 0:01:23.1]} 32. g4 {[%clk 0:03:37.4]} 32... hxg4 {[%clk 0:01:20.6]}
33. Qg2 {[%clk 0:03:34.5]} 33... Qh7+ {[%clk 0:01:15.6]} 34. Kg1 {[%clk
0:03:32.6]} 34... Nxe3 {[%clk 0:01:13.6]} 35. Qh2 {[%clk 0:03:28.6]} 35... Rc1+
{[%clk 0:01:11.4]} 36. Kf2 {[%clk 0:03:25.5]} 36... Qxh2+ {[%clk 0:01:10.2]} 37.
Kxe3 {[%clk 0:03:25]} 37... Rc3# {[%clk 0:01:08.8]} 0-1